bitfinex-derivatives/quotes_SOLF0:USTF0_20250409
["timestamp","ask_amount","ask_price","bid_price","bid_amount"]
[1744198547725,7.5839,103.78,103.74,9.644]
[1744198547918,11.2882,103.78,103.74,9.644]
[1744198548114,9.6416,103.77,103.71,1.92845434]
[1744198548314,9.70558958,103.77,103.75,0.06452734]
[1744198548628,0.06398958,103.77,103.75,0.06452734]
[1744198549920,0.06398958,103.77,103.71,1.92845434]
[1744198550922,0.06398958,103.77,103.72,53.62]
[1744198551123,0.06398958,103.77,103.73,0.06235529]
[1744198551326,0.06398958,103.77,103.74,1.92789666]
[1744198551515,0.06398958,103.77,103.76,9.6422]
[1744198551722,0.06398958,103.77,103.76,11.56972505]
[1744198552123,57.4486,103.82,103.76,1.92752505]
[1744198552329,57.4486,103.82,103.78,9.64]
[1744198552526,57.4486,103.82,103.76,1.92752505]
[1744198553129,57.4486,103.82,103.76,55.54752505]
[1744198553428,0.06438944,103.8,103.79,9.6394]
[1744198557630,0.06438944,103.8,103.78,9.70521426]
[1744198558130,0.06438944,103.8,103.76,1.92752505]
[1744198558734,0.06438944,103.8,103.7,535.8831714]
[1744198558933,9.6409,103.78,103.7,535.8831714]
[1744198559137,53.6,103.77,103.7,535.8831714]
[1744198559433,0.06928475,103.76,103.75,9.6423]
[1744198559631,3.16288475,103.76,103.73,0.07234169]
[1744198560633,3.16288475,103.76,103.75,9.6431]
[1744198561930,66.40288475,103.76,103.66,444.81362706]
[1744198562128,56.76288475,103.76,103.66,443.13623569]
[1744198562326,56.6936,103.76,103.66,443.13623569]
[1744198562626,359.0,103.75,103.67,90.68572237]
[1744198563229,0.0728215,103.72,103.7,0.06757663]
[1744198563630,9.7191215,103.72,103.7,0.06757663]
[1744198563930,0.0728215,103.72,103.7,0.06757663]
[1744198564536,0.0728215,103.72,103.71,9.6469]
[1744198565434,56.6936,103.76,103.75,9.6431]
[1744198565635,3.0936,103.76,103.7,62.0]
[1744198566423,53.6,103.79,103.76,9.6421]
[1744198566622,6.662e-05,103.74,103.72,0.07125191]
[1744198566829,562.7,103.83,103.71,56.794]
[1744198567035,562.7,103.83,103.75,9.6427]
[1744198567235,562.7,103.83,103.71,56.794]
[1744198567736,9.6519,103.82,103.71,56.794]
[1744198567931,9.6519,103.82,103.76,0.0735553]
[1744198568234,0.06104627,103.78,103.76,0.0735553]
[1744198568637,0.06104627,103.78,103.76,9.7157553]
[1744198568830,0.06104627,103.78,103.76,0.0735553]
[1744198569239,0.06104627,103.78,103.76,9.7152553]
[1744198569434,0.06104627,103.78,103.77,1.9273393]
[1744198570938,9.70134627,103.78,103.77,1.9273393]
[1744198571441,0.06104627,103.78,103.77,1.9273393]
[1744198572644,9.70134627,103.78,103.77,1.9273393]
[1744198572943,0.06104627,103.78,103.77,1.9273393]
[1744198574333,19.2593,103.9,103.77,11.5673393]
[1744198574533,6.5429,103.88,103.77,1.9273393]
[1744198574737,9.6315,103.88,103.77,1.9273393]
[1744198574934,54.84,103.9,103.77,1.9273393]
[1744198575335,9.638,103.81,103.77,11.5682393]
[1744198575532,54.90830132,103.85,103.77,1.9273393]
[1744198575737,64.584,103.84,103.77,1.9273393]
[1744198575944,54.84,103.83,103.77,1.9273393]
[1744198576644,0.06276814,103.81,103.79,0.06402064]
[1744198576844,9.6385,103.8,103.79,0.06402064]
[1744198577345,9.6403,103.78,103.77,1.9273393]
[1744198577545,0.06276814,103.81,103.77,1.9273393]
[1744198577747,54.84,103.83,103.77,1.9273393]
[1744198578550,0.06296032,103.81,103.79,0.07153097]
[1744198580443,9.744,103.84,103.79,0.07153097]
[1744198581243,563.82,103.89,103.8,54.84]
[1744198581548,54.84,103.89,103.8,54.84]
[1744198581755,0.06999743,103.86,103.83,0.06323352]
[1744198582954,0.06999743,103.86,103.83,1.98945908]
[1744198583254,0.06999743,103.86,103.84,1.92604006]
[1744198584555,54.82,103.92,103.84,1.92604006]
[1744198585356,9.6295,103.9,103.85,9.6335]
[1744198585755,0.06801902,103.89,103.86,0.06941894]
[1744198586255,9.69831902,103.89,103.86,0.06941894]
[1744198586457,0.06801902,103.89,103.86,0.06941894]
[1744198587157,9.69871902,103.89,103.86,0.06941894]
[1744198587966,0.06801902,103.89,103.86,1.99508811]
[1744198588756,9.632,103.87,103.86,1.99508811]
[1744198589565,0.06801902,103.89,103.86,1.99508811]
[1744198590266,9.69831902,103.89,103.86,1.99508811]
[1744198590867,9.6315,103.88,103.86,1.99508811]
[1744198591159,9.68801902,103.89,103.77,62.0]
[1744198591364,508.64,103.87,103.77,62.0]
[1744198591559,60.827,103.86,103.77,62.0]
[1744198591758,60.827,103.86,103.78,54.8]
[1744198591953,2.6051,103.85,103.78,54.8]
[1744198592159,2.6051,103.85,103.78,563.44]
[1744198592464,54.8,103.89,103.8,0.06526437]
[1744198592665,9.6333,103.86,103.81,9.6372]
[1744198593170,9.6352,103.84,103.79,9.639]
[1744198593367,2.6051,103.87,103.78,563.44]
[1744198593561,9.6349,103.84,103.79,9.639]
[1744198593760,9.69666736,103.84,103.81,0.06453776]
[1744198594764,0.06176736,103.84,103.81,0.06453776]
[1744198595766,9.69696736,103.84,103.81,0.06453776]
[1744198596657,0.06176736,103.84,103.81,0.06453776]
[1744198597565,9.6365,103.83,103.81,0.06453776]
[1744198597769,0.06176736,103.84,103.81,0.06453776]
[1744198598071,54.86176736,103.84,103.81,0.06453776]
[1744198599267,9.6366,103.82,103.81,0.06453776]
[1744198600173,54.86176736,103.84,103.75,54.8]
[1744198600364,54.8,103.84,103.76,1.92752505]
[1744198600565,9.6388,103.8,103.76,1.92752505]
[1744198600975,54.8,103.84,103.76,1.92752505]
[1744198601277,0.07167021,103.79,103.77,0.06984287]
[1744198601475,2.6337,103.86,103.78,1.92715359]
[1744198601679,2.6337,103.86,103.79,54.36]
[1744198601877,5.1723,103.86,103.79,54.36]
[1744198602063,2.615,103.87,103.79,54.36]
[1744198602064,54.34,103.88,103.8,1.92678227]
[1744198602371,8.0319,103.87,103.8,1.92678227]
[1744198602570,9.6348,103.84,103.83,0.07072431]
[1744198604378,9.6348,103.84,103.83,2.431e-05]
[1744198606371,359.0,103.83,103.73,10.1606]
[1744198606567,28.9,103.82,103.73,10.1606]
[1744198606769,9.6442,103.74,103.71,106.33604099]
[1744198606964,54.36,103.77,103.72,2.6729]
[1744198607169,54.36,103.77,103.7,69.2919]
[1744198607379,0.07404874,103.76,103.73,0.06793004]
[1744198607679,0.07404874,103.76,103.7,59.6446]
[1744198607878,54.36,103.81,103.7,59.6446]
[1744198608083,54.36,103.81,103.73,0.0732832]
[1744198608270,9.639,103.8,103.73,0.0732832]
[1744198608472,54.36,103.81,103.74,54.36]
[1744198608668,54.36,103.81,103.74,64.0034]
[1744198608874,9.6407,103.78,103.74,64.0034]
[1744198609073,0.07134983,103.79,103.76,0.07390691]
[1744198609577,0.06480155,103.79,103.76,0.06304031]
[1744198611787,9.6407,103.78,103.76,0.06304031]
[1744198612084,0.06480155,103.79,103.77,1.9273393]
[1744198612276,9.70480155,103.79,103.77,1.9273393]
[1744198612474,0.06480155,103.79,103.77,1.9273393]
[1744198612886,9.6403,103.78,103.77,1.9273393]
[1744198613085,0.06480155,103.79,103.77,1.9273393]
[1744198614184,9.70450155,103.79,103.77,1.9273393]
[1744198615185,0.06480155,103.79,103.77,1.9273393]
[1744198616481,9.70480155,103.79,103.65,259.94204147]
[1744198616677,0.06480155,103.79,103.67,106.33604099]
[1744198616880,9.6452,103.73,103.69,9.6481]
[1744198617183,54.38,103.75,103.67,106.33604099]
[1744198617380,9.6454,103.73,103.69,9.6481]
[1744198617578,0.06357604,103.72,103.7,0.06333721]
[1744198618882,9.6469,103.71,103.7,0.06333721]
[1744198619088,0.06357604,103.72,103.64,54.38]
[1744198619279,54.38,103.75,103.65,62.0]
[1744198619683,9.6471,103.71,103.67,9.6499]
[1744198619884,54.38,103.75,103.65,62.0]
[1744198620086,54.38,103.75,103.65,63.67811935]
[1744198620291,83.2943,103.81,103.69,0.06771696]
[1744198620589,54.38,103.81,103.69,54.38]
[1744198621383,9.6428,103.76,103.72,9.6452]
[1744198621586,0.06610998,103.76,103.74,0.07327466]
[1744198622092,0.06868167,103.76,103.74,0.06250811]
[1744198622792,9.6431,103.75,103.74,0.06250811]
[1744198623091,0.06868167,103.76,103.74,1.99040477]
[1744198623890,0.06868167,103.76,103.75,11.57081084]
[1744198624091,54.38,103.8,103.75,1.92771084]
[1744198624600,54.38,103.8,103.77,9.6408]
[1744198624895,9.6372,103.82,103.77,1.9273393]
[1744198625091,54.38,103.83,103.77,1.9273393]
[1744198625292,0.06112405,103.8,103.77,1.99083608]
[1744198625589,0.06112405,103.8,103.77,11.63143608]
[1744198625893,0.06112405,103.8,103.77,1.99083608]
[1744198626090,0.06112405,103.8,103.78,9.64]
[1744198626291,0.06112405,103.8,103.78,1.92715359]
[1744198626789,0.06112405,103.8,103.79,9.6394]
[1744198626989,509.02,103.91,103.78,1.92715359]
[1744198627196,54.38,103.9,103.82,9.6362]
[1744198627380,54.38,103.9,103.79,62.0]
[1744198627587,54.38,103.9,103.8,1.92678227]
[1744198627792,9.6336,103.86,103.82,9.6365]
[1744198627999,54.38,103.9,103.8,1.92678227]
[1744198628195,9.6353,103.84,103.83,0.06162253]
[1744198628495,54.38,103.86,103.8,1.92678227]
[1744198628696,9.6357,103.83,103.82,0.06308573]
[1744198628885,54.38,103.84,103.8,1.92678227]
[1744198629087,54.38,103.84,103.81,0.06986343]
[1744198629288,64.08471438,103.84,103.81,0.06986343]
[1744198629488,54.44911438,103.84,103.81,1.99646009]
[1744198630097,54.44911438,103.84,103.81,11.63356009]
[1744198630402,0.06911438,103.84,103.81,11.63356009]
[1744198630694,0.06911438,103.84,103.81,42.07403488]
[1744198630897,0.06911438,103.84,103.81,1.99646009]
[1744198631399,0.06911438,103.84,103.81,42.07403488]
[1744198631798,0.06911438,103.84,103.81,1.99646009]
[1744198631990,53.58,103.83,103.81,1.99646009]
[1744198632998,9.6366,103.82,103.81,1.99646009]
[1744198634299,53.58,103.83,103.81,1.99646009]
[1744198635503,103.29757479,103.83,103.74,40.07757479]
[1744198635703,93.65757479,103.83,103.72,40.07757479]
[1744198635899,9.6408,103.78,103.72,40.07757479]
[1744198636194,53.58,103.79,103.7,40.07757479]
[1744198636395,40.07757479,103.77,103.68,303.50985286]
[1744198636597,548.93757479,103.77,103.68,303.50985286]
[1744198636802,0.06761593,103.74,103.71,0.06632494]
[1744198637002,53.64761593,103.74,103.71,0.06632494]
[1744198637502,9.6459,103.72,103.71,0.06632494]
[1744198638694,53.64761593,103.74,103.71,0.06632494]
[1744198639803,48.1738,103.82,103.71,0.06632494]
[1744198639804,359.0,103.81,103.71,0.06632494]
[1744198640103,53.6,103.8,103.7,40.07757479]
[1744198640304,9.6435,103.75,103.71,9.6463]
[1744198640703,53.6,103.76,103.7,40.07757479]
[1744198640905,53.6,103.76,103.73,9.6444]
[1744198641108,53.6,103.76,103.74,5.1211]
[1744198641404,53.66277679,103.76,103.74,5.1211]
[1744198641594,0.06277679,103.76,103.74,45.19867479]
[1744198642003,9.64,103.79,103.74,47.12657145]
[1744198642207,53.62,103.82,103.76,40.07757479]
[1744198642604,63.2572,103.82,103.78,49.71777479]
[1744198642806,868.06,103.85,103.79,7.8443]
[1744198642807,562.68,103.85,103.79,7.8443]
[1744198643104,0.06546344,103.83,103.81,0.06977145]
[1744198643508,9.6366,103.82,103.81,0.06977145]
[1744198645608,0.06546344,103.83,103.81,0.06977145]
[1744198647607,0.06546344,103.83,103.81,2.70397145]
[1744198648108,0.06546344,103.83,103.81,4.63056811]
[1744198650318,0.06546344,103.83,103.81,14.26756811]
[1744198651021,0.06546344,103.83,103.81,4.63056811]
[1744198651519,9.70156344,103.83,103.81,4.63056811]
[1744198651810,0.06546344,103.83,103.81,4.63056811]
[1744198652112,0.06546344,103.83,103.81,14.26776811]
[1744198652517,0.06546344,103.83,103.81,4.63056811]
[1744198652709,0.06546344,103.83,103.82,9.6366]
[1744198653213,9.6325,103.87,103.83,9.6352]
[1744198653917,2.6706,103.88,103.82,9.6361]
[1744198654215,2.6706,103.88,103.83,1.92622556]
[1744198654410,0.06140102,103.86,103.84,0.0656747]
[1744198655114,9.69430102,103.86,103.84,0.0656747]
[1744198655514,0.06140102,103.86,103.84,0.0656747]
[1744198658219,9.69470102,103.86,103.84,0.0656747]
[1744198658617,0.06140102,103.86,103.84,0.0656747]
[1744198658816,53.58,103.85,103.84,0.0656747]
[1744198659028,53.58,103.85,103.81,2.6342]
[1744198659619,63.2144,103.85,103.81,2.6342]
[1744198659921,53.58,103.85,103.81,2.6342]
[1744198660112,53.58,103.85,103.82,0.0636835]
[1744198660313,9.6353,103.84,103.82,0.0636835]
[1744198660919,9.6357,103.83,103.82,0.0636835]
[1744198666314,0.06546941,103.84,103.81,2.6342]
[1744198666816,0.06546941,103.84,103.79,5.173]
[1744198667518,9.6376,103.81,103.8,0.06504973]
[1744198667722,63.2176,103.81,103.8,0.06504973]
[1744198669826,53.58,103.81,103.8,0.06504973]
[1744198670125,0.07018007,103.82,103.8,0.06504973]
[1744198670824,0.07018007,103.82,103.81,9.6376]
[1744198672623,0.07018007,103.82,103.8,9.70294973]
[1744198673124,0.07018007,103.82,103.81,9.6376]
[1744198673420,0.07018007,103.82,103.81,11.56419666]
[1744198673825,0.07018007,103.82,103.81,1.92659666]
[1744198674025,63.29018007,103.82,103.69,53.58]
[1744198674225,53.65018007,103.82,103.69,55.25666402]
[1744198674429,53.58,103.82,103.69,55.25666402]
[1744198674621,53.58,103.82,103.71,106.33604099]
[1744198674823,101.7534,103.82,103.71,106.33604099]
[1744198675120,104.7818,103.82,103.71,106.33604099]
[1744198675322,9.6422,103.76,103.75,0.07381053]
[1744198675521,53.58,103.77,103.71,106.33604099]
[1744198675721,56.6084,103.77,103.71,106.33604099]
[1744198675923,9.6436,103.75,103.72,9.6456]
[1744198676830,9.71161699,103.75,103.72,9.713748]
[1744198677225,9.71161699,103.75,103.73,9.6449]
[1744198677630,9.71161699,103.75,103.72,0.068148]
[1744198678022,9.6441,103.74,103.72,0.068148]
[1744198678222,0.06801699,103.75,103.72,0.068148]
[1744198678422,0.06801699,103.75,103.74,9.6441]
[1744198678931,0.06801699,103.75,103.73,9.6445]
[1744198679132,0.06801699,103.75,103.73,11.57258252]
[1744198679832,0.06801699,103.75,103.74,9.6441]
[1744198680032,0.06801699,103.75,103.73,1.92808252]
[1744198680429,0.06801699,103.75,103.74,9.6441]
[1744198680634,0.06801699,103.75,103.73,1.92808252]
[1744198680935,9.6441,103.74,103.73,1.92808252]
[1744198681634,9.71161699,103.75,103.73,1.92808252]
[1744198681831,0.06801699,103.75,103.73,1.92808252]
[1744198682134,9.6441,103.74,103.73,1.92808252]
[1744198682530,9.6441,103.74,103.73,8.252e-05]
[1744198682832,9.645,103.73,103.72,0.068148]
[1744198684832,9.6475,103.71,103.67,4.5593]
[1744198685228,53.6,103.72,103.67,4.5593]
[1744198685732,53.6,103.72,103.68,9.6496]
[1744198685933,53.6,103.72,103.67,4.5593]
[1744198686123,0.0632833,103.71,103.69,0.07111541]
[1744198687425,2.3274,103.75,103.69,1.99994171]
[1744198687627,2.3274,103.75,103.7,4.1328403]
[1744198688034,53.62,103.78,103.7,4.1328403]
[1744198688335,53.62,103.78,103.71,1.92845434]
[1744198688632,0.06332406,103.76,103.73,9.70743911]
[1744198688836,0.06332406,103.76,103.73,0.06283911]
[1744198689530,0.06332406,103.76,103.74,9.644]
[1744198689732,9.70572406,103.76,103.73,0.06283911]
[1744198690534,9.70572406,103.76,103.73,9.70763911]
[1744198690833,0.06332406,103.76,103.73,0.06283911]
[1744198691135,9.6436,103.75,103.73,0.06283911]
[1744198692838,53.58,103.75,103.71,1.92845434]
[1744198693334,9.6459,103.72,103.71,1.92845434]
[1744198693534,4.4774,103.74,103.71,1.92845434]
[1744198693734,53.58,103.75,103.71,1.92845434]
[1744198693927,4.4774,103.77,103.72,0.06839753]
[1744198694131,0.06566872,103.74,103.73,40.15369618]
[1744198694537,0.06566872,103.74,103.73,49.79869618]
[1744198694926,0.06566872,103.74,103.73,9.645]
[1744198696032,53.58,103.78,103.76,9.6414]
[1744198696239,53.58,103.78,103.71,108.72845052]
[1744198696536,53.58,103.78,103.75,9.6429]
[1744198696729,53.58,103.78,103.72,1.92826841]
[1744198697037,0.06391711,103.76,103.74,0.07154783]
[1744198697436,9.70651711,103.76,103.74,0.07154783]
[1744198699039,0.06391711,103.76,103.74,0.07154783]
[1744198699739,9.6431,103.75,103.74,0.07154783]
[1744198699944,0.06391711,103.76,103.74,0.07154783]
[1744198700942,9.6431,103.75,103.74,0.07154783]
[1744198701935,9.70671711,103.76,103.74,0.07154783]
[1744198702134,0.06391711,103.76,103.74,0.07154783]
[1744198702839,0.06391711,103.76,103.74,1.99944449]
[1744198703142,0.06391711,103.76,103.75,9.6431]
[1744198703635,0.06391711,103.76,103.75,49.79679618]
[1744198703835,0.06391711,103.76,103.75,51.72450702]
[1744198704329,58.1891,103.81,103.75,42.08140702]
[1744198704530,58.1891,103.81,103.76,1.92752505]
[1744198704938,9.6385,103.8,103.76,1.92752505]
[1744198705341,53.58,103.81,103.76,1.92752505]
[1744198705538,0.06097741,103.79,103.77,40.2246235]
[1744198705836,2.3158,103.85,103.79,40.15369618]
[1744198706036,53.58,103.86,103.81,40.15369618]
[1744198706339,53.58,103.86,103.79,40.15369618]
[1744198706841,0.07419489,103.84,103.81,0.06797129]
[1744198707543,9.6358,103.83,103.81,0.06797129]
[1744198707743,0.07419489,103.84,103.81,0.06797129]
[1744198708139,9.6366,103.82,103.81,0.06797129]
[1744198708336,0.07419489,103.84,103.81,0.06797129]
[1744198709346,0.07419489,103.84,103.8,1.92678227]
[1744198709533,2.34609489,103.84,103.74,40.15369618]
[1744198709739,9.6397,103.79,103.76,11.8472]
[1744198709941,53.56,103.8,103.71,2.2246]
[1744198710241,9.6426,103.76,103.73,9.6446]
[1744198710443,55.8319,103.79,103.74,0.06679077]
[1744198710629,0.0710655,103.77,103.74,0.06679077]
[1744198710829,9.6433,103.75,103.74,0.06679077]
[1744198711443,63.2033,103.75,103.74,0.06679077]
[1744198711942,9.6433,103.75,103.74,0.06679077]
[1744198712143,9.6425,103.76,103.74,0.06679077]
[1744198712644,9.6431,103.75,103.74,0.06679077]
[1744198713030,0.0654622,103.77,103.71,1.92845434]
[1744198713234,9.645,103.73,103.71,1.92845434]
[1744198713543,53.56,103.74,103.71,1.92845434]
[1744198713745,9.6451,103.73,103.71,1.92845434]
[1744198714043,53.56,103.74,103.71,1.92845434]
[1744198714343,0.07389181,103.73,103.71,1.99822824]
[1744198714744,9.71929181,103.73,103.71,1.99822824]
[1744198715042,0.07389181,103.73,103.71,11.64482824]
[1744198715240,9.71919181,103.73,103.71,1.99822824]
[1744198715547,0.07389181,103.73,103.71,1.99822824]
[1744198717146,0.07389181,103.73,103.71,11.64472824]
[1744198717443,0.07389181,103.73,103.71,1.99822824]
[1744198717748,0.07389181,103.73,103.71,11.64422824]
[1744198718042,0.07389181,103.73,103.71,1.99822824]
[1744198718232,9.71929181,103.73,103.71,1.99822824]
[1744198718739,0.07389181,103.73,103.71,1.99822824]
[1744198718943,9.6459,103.72,103.71,1.99822824]
[1744198720045,9.648,103.7,103.66,42.53549618]
[1744198720346,53.52,103.73,103.66,40.15369618]
[1744198720541,9.6491,103.69,103.65,2.2318]
[1744198721347,0.06606652,103.68,103.66,0.06556125]
[1744198721649,0.06606652,103.68,103.67,9.6506]
[1744198721952,53.58606652,103.68,103.57,323.05647606]
[1744198722251,53.52,103.68,103.63,40.15369618]
[1744198722544,53.52,103.68,103.6,42.41319618]
[1744198722545,53.52,103.68,103.65,49.80579618]
[1744198722949,53.52,103.68,103.65,40.15369618]
[1744198723249,53.58215328,103.68,103.65,0.05369392]
[1744198724350,9.6515,103.66,103.65,0.05369392]
[1744198725450,9.6562,103.61,103.59,42.51689618]
[1744198725649,53.54,103.63,103.57,40.15369618]
[1744198725950,53.54,103.62,103.57,40.15369618]
[1744198726543,9.6573,103.6,103.57,40.15369618]
[1744198726744,9.6573,103.6,103.57,42.08475729]
[1744198727553,0.07406542,103.61,103.59,9.658]
[1744198727754,0.07406542,103.61,103.59,49.81169618]
[1744198728252,0.07406542,103.61,103.59,40.15369618]
[1744198728653,9.73066542,103.61,103.58,1.93087468]
[1744198728956,0.07406542,103.61,103.59,40.15369618]
[1744198729342,53.54,103.65,103.6,1.93050193]
[1744198729541,53.54,103.65,103.6,42.08419811]
[1744198729758,9.6538,103.64,103.6,51.74069811]
[1744198730153,53.54,103.65,103.6,51.74069811]
[1744198730350,9.6544,103.63,103.61,0.06612941]
[1744198730544,0.06245503,103.64,103.61,1.99644501]
[1744198730745,0.06245503,103.64,103.62,42.08382549]
[1744198731056,0.06245503,103.64,103.62,1.93012931]
[1744198731556,9.71625503,103.64,103.62,1.93012931]
[1744198731855,0.06245503,103.64,103.62,1.93012931]
[1744198732958,0.06245503,103.64,103.63,9.6543]
[1744198733346,53.56,103.67,103.62,44.41772549]
[1744198733655,63.2106,103.67,103.64,9.653]
[1744198733852,63.2106,103.67,103.63,1.92994306]
[1744198734557,0.07289458,103.66,103.64,0.07096254]
[1744198734855,0.07289458,103.66,103.64,9.72396254]
[1744198735155,0.07289458,103.66,103.64,0.07096254]
[1744198735351,0.07289458,103.66,103.65,9.6524]
[1744198735551,0.07289458,103.66,103.64,0.07096254]
[1744198735756,0.07289458,103.66,103.64,40.22465872]
[1744198736051,0.07289458,103.66,103.64,0.07096254]
[1744198737156,9.6524,103.65,103.64,0.07096254]
[1744198739658,0.07289458,103.66,103.57,40.15369618]
[1744198739847,2.3225,103.66,103.58,1.93087468]
[1744198740053,2.3225,103.66,103.59,9.6575]
[1744198740254,9.6556,103.62,103.59,9.6575]
[1744198740753,9.6567,103.61,103.59,0.06555791]
[1744198740949,0.0618751,103.62,103.59,0.06555791]
[1744198741154,0.0618751,103.62,103.59,9.72345791]
[1744198741457,9.7177751,103.62,103.59,9.72345791]
[1744198741763,0.0618751,103.62,103.6,9.6568]
[1744198742261,0.0618751,103.62,103.59,9.72265791]
[1744198742451,0.0618751,103.62,103.59,1.9962462]
[1744198742860,0.0618751,103.62,103.59,42.14994238]
[1744198743258,9.6568,103.61,103.59,1.9962462]
[1744198744155,9.7176751,103.62,103.59,11.6541462]
[1744198744364,0.0618751,103.62,103.59,1.9962462]
[1744198744554,0.0618751,103.62,103.6,1.93050193]
[1744198744756,0.0618751,103.62,103.61,9.6562]
[1744198745063,0.0618751,103.62,103.6,1.93050193]
[1744198745464,9.6562,103.61,103.6,1.93050193]
[1744198745666,0.0618751,103.62,103.6,1.93050193]
[1744198745865,53.6418751,103.62,103.6,1.93050193]
[1744198746064,9.6562,103.61,103.6,1.93050193]
[1744198748562,9.6608,103.56,103.55,3.3119193]
[1744198748863,63.2408,103.56,103.55,3.3119193]
[1744198749665,9.6627,103.54,103.5,47.15569618]
[1744198750066,9.6627,103.54,103.5,7.002]
[1744198750368,9.73211585,103.55,103.5,44.84159618]
[1744198750558,0.06981585,103.55,103.5,44.84159618]
[1744198750764,0.06981585,103.55,103.5,54.50769618]
[1744198750968,9.6627,103.54,103.5,54.50769618]
[1744198751166,9.6627,103.54,103.49,0.95708868]
[1744198751468,9.6627,103.54,103.49,50.77758486]
[1744198751663,9.6627,103.54,103.49,41.11078486]
[1744198751864,9.6627,103.54,103.5,9.6657]
[1744198752063,9.6627,103.54,103.49,41.11078486]
[1744198752369,0.06981585,103.55,103.49,0.95708868]
[1744198752563,82.56,103.56,103.49,0.95708868]
[1744198752867,9.6664,103.5,103.49,0.95708868]
[1744198753067,53.52,103.51,103.46,107.03167726]
[1744198753567,0.06442125,103.5,103.48,40.15369618]
[1744198753773,0.06442125,103.5,103.49,106.33604099]
[1744198753956,9.666,103.51,103.49,106.33604099]
[1744198754161,53.52,103.5,103.49,106.33604099]
[1744198754868,63.1864,103.5,103.49,106.33604099]
[1744198755466,53.52,103.5,103.48,157.09623708]
[1744198755767,65.6277,103.5,103.47,259.94204147]
[1744198756068,9.6683,103.48,103.47,259.94204147]
[1744198756267,9.6683,103.48,103.47,251.46574147]
[1744198756657,9.6683,103.48,103.47,202.26544147]
[1744198756860,9.6683,103.48,103.47,152.99264147]
[1744198757467,9.6692,103.47,103.46,0.69563627]
[1744198759164,9.6692,103.47,103.46,3.627e-05]
[1744198759570,49.81369618,103.47,103.43,0.35115221]
[1744198759769,53.56,103.46,103.43,0.35115221]
[1744198760270,53.62168992,103.46,103.43,0.35115221]
[1744198760469,40.15369618,103.45,103.43,5.221e-05]
[1744198760667,519.892,103.44,103.43,5.221e-05]
[1744198761466,9.673,103.43,103.42,0.61176381]
[1744198761664,9.673,103.43,103.42,6.381e-05]
[1744198763169,510.28201223,103.44,103.37,0.33100146]
[1744198763369,53.56,103.43,103.37,10.00930146]
[1744198763571,0.06326408,103.42,103.38,1.93461017]
[1744198763767,600.89200525,103.49,103.41,9.6748]
[1744198763963,53.58,103.46,103.38,1.93461017]
[1744198764169,9.6724,103.44,103.38,1.93461017]
[1744198764377,53.58,103.46,103.4,9.6755]
[1744198764780,9.6734,103.43,103.38,42.08830635]
[1744198764979,9.6734,103.43,103.39,9.6763]
[1744198765174,9.6734,103.43,103.42,0.06326408]
[1744198765683,9.73685913,103.44,103.42,0.06326408]
[1744198765884,0.06425913,103.44,103.42,0.06326408]
[1744198766381,9.673,103.43,103.42,0.06326408]
[1744198766684,9.673,103.43,103.38,30.22771519]
[1744198766979,9.6726,103.44,103.38,30.22771519]
[1744198767174,53.58,103.46,103.41,9.6744]
[1744198767581,9.6717,103.45,103.41,9.6744]
[1744198767782,53.58,103.46,103.42,9.6734]
[1744198767979,0.06597827,103.44,103.4,40.15369618]
[1744198768180,0.06597827,103.44,103.41,1.93404893]
[1744198768683,9.6736,103.43,103.41,1.93404893]
[1744198768882,0.06597827,103.44,103.41,1.93404893]
[1744198769284,9.673,103.43,103.41,1.93404893]
[1744198770079,9.73857827,103.44,103.41,1.93404893]
[1744198770278,0.06597827,103.44,103.41,1.93404893]
[1744198770584,9.6737,103.43,103.41,1.93404893]
[1744198771688,0.06597827,103.44,103.41,1.93404893]
[1744198772187,0.06597827,103.44,103.41,11.60824893]
[1744198772684,0.06597827,103.44,103.41,1.93404893]
[1744198774388,9.673,103.43,103.41,1.93404893]
[1744198774591,0.06597827,103.44,103.41,1.93404893]
[1744198775488,9.6739,103.42,103.41,1.93404893]
[1744198775689,63.2739,103.42,103.41,1.93404893]
[1744198776187,53.6,103.42,103.41,1.93404893]
[1744198776684,63.2739,103.42,103.41,1.93404893]
[1744198776889,53.6,103.42,103.38,2.2139]
[1744198777277,9.74913525,103.41,103.38,11.8915]